Cogmind - Beta 9.6 @@@ ROGUE MODE // 2020.08.18 @ 06:39:11 Player: Sudoku Result: Destroyed by D-53 Grenadier with Mini Grenade Launcher Performance ------------- Evolutions (0) 0 Regions Visited (2) 400 Robots Destroyed (8) 40 Value Destroyed (38) 38 Prototype IDs (0) 0 Alien Tech Used (0) 0 Bonus (0) 0 TOTAL SCORE: 478 Bonus ------- None Cogmind --------- Core Integrity 0/250 Matter 300/300 Energy 100/100 System Corruption 0% Temperature Cool (0) Movement Core (350) Ox6 Location -10/Mines Parts ------- > --- POWER (1) -------- (None) > --- PROPULSION (2) --- (None) > --- UTILITY (2) ------ Small Storage Unit Large Storage Unit > --- WEAPON (2) ------- (None) > --- INVENTORY (12) --- Light Ion Engine Light Ion Engine Small Storage Unit Small Matter Pod (50) Medium Matter Pod (100) Compact Matter Pod (150) Compact Matter Pod (150) Compact Matter Pod (150) ECM Suite Peak State ------------ > --- POWER ------------ Ion Engine > --- PROPULSION ------- Aluminum Leg Aluminum Leg > --- UTILITY ---------- Small Storage Unit Large Storage Unit > --- WEAPON ----------- Assault Rifle Light Assault Rifle > --- INVENTORY -------- Light Ion Engine Light Ion Engine Light Ion Engine Light Treads Light Treads Compact Wheel Small Storage Unit ECM Suite Tractor Beam Medium Laser [Rating: 8] Favorites ----------- Power Ion Engine Engine Ion Engine Propulsion Aluminum Leg Leg Aluminum Leg Utility Small Storage Unit Storage Small Storage Unit Weapon Light Assault Rifle Energy Gun Medium Laser Ballistic Gun Light Assault Rifle Special Weapon Mining Laser Build | -11 -10 -10 ------- Run | Scr Mat Min Slots Evolved . | . . . Power . | . . . Propulsion . | . . . Utility . | . . . Weapon . | . . . Parts Attached 11 | 7 1 3 Power 1 | 1 . . Engine 1 | 1 . . Core . | . . . Reactor . | . . . Propulsion 2 | 2 . . Treads . | . . . Leg 2 | 2 . . Wheel . | . . . Hover . | . . . Flight . | . . . Utility 3 | 2 1 . Device . | . . . Storage 3 | 2 1 . Processor . | . . . Hackware . | . . . Protection . | . . . Artifact . | . . . Weapon 5 | 2 . 3 Energy Gun 1 | . . 1 Energy Cannon . | . . . Ballistic Gun 2 | 2 . . Ballistic Cannon . | . . . Launcher 1 | . . 1 Special Weapon 1 | . . 1 Impact Weapon . | . . . Slashing Weapon . | . . . Piercing Weapon . | . . . Special Melee Weapon . | . . . Unidentified Prototypes . | . . . Parts Lost 7 | . . 7 Power 1 | . . 1 Propulsion 2 | . . 2 Utility . | . . . Weapon 4 | . . 4 Highest Loss Streak 7 | . . 7 Average Slot Usage (%) 95 | . 100 94 Engine 13 | . 14 13 Leg 25 | . 28 24 Storage 28 | . 28 28 Ballistic Gun 25 | . 28 24 Naked Turns . | . . . Heaviest Build 28 | 16 28 28 Greatest Support 20 | 20 20 20 Greatest Overweight (x) 8 | . 1 8 Average Overweight (x) . | . . 1 Largest Inventory Capacity 12 | 8 12 12 Average Capacity 10 | 6 11 12 Most Carried 12 | 8 11 12 Average Carried 8 | 4 9 11 Final Capacity 12 | 8 12 12 Final Carried 11 | 8 11 9 Class Distribution -------------------- 100% | Mutant Dominant Class ---------------- Mutant | -10/Materials Mutant | -10/Mines Resources | -11 -10 -10 ----------- Run | Scr Mat Min Matter Collected 397 | 290 . 107 Remotely . | . . . Salvage Created 178 | 117 . 61 Parts 9 | 7 . 2 Haulers Intercepted . | . . . Recyclers Shooed . | . . . Parts Field Recycled . | . . . Retrieved Matter . | . . . Parts Self-Destructed . | . . . Prevented . | . . . Kills | -11 -10 -10 ------- Run | Scr Mat Min Combat Hostiles Destroyed 5 | . . 5 Guns 4 | . . 4 Cannons 1 | . . 1 Classes Destroyed 4 | 2 . 2 Worker 2 | 2 . . Recycler 1 | 1 . . Swarmer 3 | . . 3 Assembled 2 | . . 2 Best Kill Streak 3 | 1 . 3 Combat Bots Only 3 | . . 3 Max Kills in Single Turn 2 | 1 . 2 Gunslinging 1 | . . 1 Exploded . | . . . Melee . | . . . Uniques/NPCs Destroyed . | . . . Combat | -11 -10 -10 -------- Run | Scr Mat Min Damage Taken 1004 | . . 1004 Core 279 | . . 279 Absorbed by Shields . | . . . Core Remaining (%) 100 | 100 . . Volleys Fired 25 | 6 3 16 Largest 2 | 2 2 2 Hottest 100 | 40 40 100 Shots Fired 46 | 12 6 28 Gun 45 | 12 6 27 Cannon . | . . . Launcher . | . . . Special 1 | . . 1 Kinetic 42 | 12 6 24 Thermal 4 | . . 4 Explosive . | . . . Electromagnetic . | . . . Robot Hit Streak 10 | 10 1 6 Robot Miss Streak 2 | 1 2 2 Penetration Max . | . . . Secondary Targets 1 | . . 1 Max Gunslinging Chain 1 | . . 1 Shots Hit Robots 32 | 10 2 20 Core Hits 17 | 6 1 10 Critical Hits . | . . . Critical Kills . | . . . Critical Parts Destroyed . | . . . Melee Attacks . | . . . Impact . | . . . Slashing . | . . . Piercing . | . . . Sneak Attacks . | . . . Combat Hostiles . | . . . Follow-up Attacks . | . . . Damage Inflicted 350 | 103 22 225 Guns 326 | 103 22 201 Cannons . | . . . Explosions . | . . . Melee . | . . . Ramming . | . . . Kinetic 290 | 103 22 165 Thermal 60 | . . 60 Explosive . | . . . Electromagnetic . | . . . Impact . | . . . Slashing . | . . . Piercing . | . . . Highest Corruption . | . . . Average Corruption . | . . . Corruption Purged . | . . . Overload Shots . | . . . Overflow Damage . | . . . Projectiles . | . . . Explosions . | . . . Melee . | . . . Knockbacks . | . . . Impact . | . . . Kinetic . | . . . Secondary . | . . . Self-Inflicted Damage . | . . . Shots . | . . . Rammed . | . . . Targets Rammed . | . . . Kicked . | . . . Crushed . | . . . Highest Temperature 70 | . . 70 Average Temperature 31 | . . 31 Received Heat Transfer 160 | . . 160 Siege Activations . | . . . Robots Corrupted . | . . . Combat Hostiles . | . . . Parts Fried . | . . . Impact Corruptions . | . . . Robots Melted . | . . . Combat Hostiles . | . . . Parts Melted . | . . . Heat Transferred 161 | . . 161 Parts Sabotaged . | . . . Parts Stolen . | . . . Parts Stripped . | . . . Power Chain Reactions . | . . . Missiles Intercepted . | . . . Alert | -11 -10 -10 ------- Run | Scr Mat Min Peak Influence 110 | 15 65 110 Average Influence 41 | 4 38 65 Maximum Alert Level . | . . . Low Security (%) 100 | 100 100 100 Level 1 . | . . . Level 2 . | . . . Level 3 . | . . . Level 4 . | . . . Level 5 . | . . . High Security . | . . . Max Security . | . . . Squads Dispatched . | . . . Investigation . | . . . Extermination . | . . . Reinforcement . | . . . Assault . | . . . Garrison . | . . . Intercept . | . . . Construction Impeded . | . . . Haulers Reinforced . | . . . Stealth | -11 -10 -10 --------- Run | Scr Mat Min Distress Signals . | . . . Communications Jammed . | . . . Distress Signals . | . . . Times Spotted 12 | . 2 10 Peak Tracking Total 7 | . 2 7 Tactical Retreats . | . . . Traps | -11 -10 -10 ------- Run | Scr Mat Min Traps Triggered . | . . . Indirectly . | . . . Trap Hack Attempts . | . . . Triggered . | . . . Disarmed . | . . . Reprogrammed . | . . . Reused . | . . . Traps Extracted . | . . . Installed . | . . . Triggered . | . . . Machines | -11 -10 -10 ---------- Run | Scr Mat Min Machines Disabled . | . . . Max in Single Turn . | . . . Machines Sabotaged . | . . . Garrisons Compromised . | . . . Overloaded Fab Kills . | . . . Fab Network Shutdowns . | . . . Hacking | -11 -10 -10 --------- Run | Scr Mat Min Machines Accessed 3 | . 3 . Terminals 3 | . 3 . Fabricators . | . . . Repair Stations . | . . . Recycling Units . | . . . Scanalyzers . | . . . Garrison Access . | . . . Total Hacks 17 | . 17 . Successful 13 | . 13 . Failed 4 | . 4 . Catastrophic 1 | . 1 . Database Lockouts . | . . . Manual 9 | . 9 . Terminals 17 | . 17 . Fabricators . | . . . Repair Stations . | . . . Recycling Units . | . . . Scanalyzers . | . . . Garrison Access . | . . . Terminal Hacks 10 | . 10 . Record 3 | . 3 . Branch Access Points 1 | . 1 . Terminal Index 1 | . 1 . Locate Traps 1 | . 1 . Hauler Manifests 1 | . 1 . Registered Components 1 | . 1 . Zone Layout 2 | . 2 . Fabricator Hacks . | . . . Repair Station Hacks . | . . . Recycling Unit Hacks . | . . . Scanalyzer . | . . . Garrison Access Hacks . | . . . Unauthorized Hacks 3 | . 3 . Terminals 3 | . 3 . Track 1 | . 1 . Botnet 2 | . 2 . Fabricators . | . . . Repair Stations . | . . . Recycling Units . | . . . Scanalyzers . | . . . Garrison Access . | . . . Data Cores Recovered . | . . . Used . | . . . Hacking Detections 3 | . 3 . Full Trace Events . | . . . Feedback Events . | . . . Feedback Blocked . | . . . Robot Schematics Acquired . | . . . Robots Built . | . . . Matter . | . . . Time . | . . . Total Robot Build Rating . | . . . Part Schematics Acquired . | . . . Parts Built . | . . . Matter . | . . . Time . | . . . Total Part Build Rating . | . . . Parts Repaired . | . . . Time . | . . . Parts Recycled . | . . . Recycled Matter . | . . . Retrieved Matter . | . . . Retrieved Components . | . . . Parts Scanalyzed . | . . . Part Schematics Acquired . | . . . Parts Damaged . | . . . Bothacking | -11 -10 -10 ------------ Run | Scr Mat Min Used RIF Installer . | . . . Robots Hacked . | . . . Non-combat . | . . . Combat . | . . . Robot Hacks Applied . | . . . Relay Couplers Released . | . . . Robots Rewired . | . . . Allies Hacked . | . . . Hacks Repelled . | . . . Allies | -11 -10 -10 -------- Run | Scr Mat Min Total Allies . | . . . Largest Group . | . . . Highest-Rated Group . | . . . Highest-Rated Ally . | . . . Total Orders . | . . . Ally Attacks . | . . . Total Damage . | . . . Kills . | . . . Allies Corrupted . | . . . Allies Melted . | . . . Intel | -11 -10 -10 ------- Run | Scr Mat Min Robot Analysis Total . | . . . Derelict Logs Recovered 1 | . . 1 Drone Launches . | . . . Drone Recoveries . | . . . Exploration | -11 -10 -10 ------------- Run | Scr Mat Min Turns Passed 679 | 206 133 340 Spaces Moved 380 | 136 82 162 Core 14 | 9 . 5 Treads . | . . . Legs 366 | 127 82 157 Wheels . | . . . Hover . | . . . Flight . | . . . Fastest Speed 50 | 50 120 150 Average Speed 141 | 115 148 159 Slowest Speed 450 | 120 150 450 Overloaded Moves . | . . . Propulsion Burnouts . | . . . Robots Hopped . | . . . Cave-ins Triggered . | . . . Exploration Rate (%) 25 | 6 26 43 Regions Visited 2 Branch Regions 1 Pre-discovered Areas . | . . . Known Exits Taken 1 | . 1 . Unknown Exits Taken 1 | 1 . . Scrap Searched . | . . . Spaces Dug . | . . . Terrain Destroyed . | . . . Melee . | . . . Projectile . | . . . AOE . | . . . Actions | -11 -10 -10 --------- Run | Scr Mat Min Total 483 | 175 89 219 Wait 35 | 10 . 25 Move 378 | 135 81 162 Hop . | . . . Pick Up 26 | 16 3 7 Fast Attach . | . . . Attach 10 | 7 . 3 Detach . | . . . Swap 1 | . 1 . Drop 8 | 1 1 6 Fire 25 | 6 3 16 Melee . | . . . Ram . | . . . Kick . | . . . Crush . | . . . Escape Stasis . | . . . Rewire . | . . . Trap . | . . . Miscellaneous . | . . . Route ------- -11/Scrapyard -10/Materials (discovered 2 exits: *Min x2) -10/Mines History --------- Turn | Location | Event 14 | -11/Scrapyard | Discovered new exit (range 16) 207 | -11/Scrapyard | Entered Materials 246 | -10/Materials | Identified exit to Mines 309 | -10/Materials | Build established: Mutant 340 | -10/Materials | Entered Mines 547 | -10/Mines | Received a Rocket Launcher from a helpful Derelict 589 | -10/Mines | Learned Materials stockpile data 617 | -10/Mines | Assembled infested the area 675 | -10/Mines | Core integrity fell below 50% 680 | -10/Mines | Core integrity fell below 20% 680 | -10/Mines | Destroyed by D-53 Grenadier with Mini Grenade Launcher Last Messages --------------- 00617_ ALERT: Infestation in the mines, dispatching Demolisher response squad. 00643_ Critical hit. 00643_ Aluminum Leg destroyed. 00643_ Assault Rifle destroyed. 00643_ Lgt. Assault Rifle destroyed. 00644_ Aluminum Leg destroyed. 00645_ Rocket Launcher severed. 00647_ as-69428 destroyed. 00650_ Mining Laser destroyed. 00652_ as-75196 destroyed. 00656_ as-66745 destroyed. 00658_ Acquired 10 matter. 00662_ Acquired 17 matter. 00671_ C-30 ARC bursts open, deploying its payload. 00671_ D-53 Grenadier unfolds itself. 00671_ Med. Laser destroyed. 00676_ The unstable cave ceiling collapses. 00676_ Ion Engine destroyed. 00677_ The unstable cave ceiling collapses. Map ----- +----------------------------------------------------+ | ???????????????????# ?????????????????? | | ???????????????????# #?????????????????? | | ???????????????????# #?????????????????? | | ???????????????????# #?????????????????? | | ???????????????????# #?????????????????? | | ??????????????????## #?????????????????? | | ?????????????????## ##????????????????? | | ????????????????## ##???????????????? | | ????????????????# #???????????????? | | ???????????????## ##??????????????? | | ??????????????## ##?????????????? | | ?????????????## ##????????????? | | ?????????????# ### ##???????????? | | ##???????????# ##?## ####????????? | | ???????????## ##???##% ##???????? | | ????????????# #?????# ##??????? | | ????????????# #?????# ##?????? | | ??????????### #????##dd## ##????? | | ?????????## #?? ## #?# #????? | | ????????## # ## #?# #????? | | #??????## #??# ### #????? | | #?????## ##### ##????? | | ####### #### # ###?????? | | ## ###?# ####???????? | | ### ##???# #?????????? | | #?### ##???## @ #?????????? | | # #???####????# ##?????????? | | # ##???????????# #?????????? | | ##????????????## ##?????????? | | ## ##??????????????## ##??????????? | | ?####???????????????## # #??????????? | | ?????????????????????# ### ?????????? | | ?????????????????????# #?? ????????? | | ?????????????????????#a#?? #???????? | | ????????????????????? ?? #???????? | | ????????????????????? ?? ##???????? | | ????????????????????a ?? ##????????? | | ???????????????????? #??# ##?????????? | | ??????????????????? #???? #??????????? | | ???????????????????? #????? #??????????? | | ????????????????????#?????? ???????????? | | ????????????????????????????????????????? | | ????????????????????????????????????????? | | ????????????????????????????????????????? | | ????????????????????????????????????????? | | ????????????????????????????????????????? | | ????????????????????????????????????????? | | ????????????????????????????????????????? | | ??????????????????????????????????????? | | ? ???????????????????????????????????? | +----------------------------------------------------+ Best States ------------- Heat Dissipation 25 Energy Generation 10 Energy Capacity 250 Matter Stores 300 Matter Capacity 300 Sight Range 16 Terrain Scan Density 10 Evasion (%) 40 Item Schematics ----------------- None Robot Schematics ------------------ None Fabricated ------------ Nothing Alien Tech Used ----------------- None Achievements -------------- None Challenges ------------ None Game ------ Seed WeaponResetExpander Manual? 0 Play Time 00:16:38 Cumulative 60.5 hours Start 2020.08.18 @ 06:06:18 End 2020.08.18 @ 06:39:11 Sessions 1 Manual Loads 0 Difficulty Rogue Special Mode None Game No. 44 Rogue 44 Adventurer 0 Explorer 0 Win Type - Total 0 Types 0/0/0/0/0/0/0 Lore% 18 Gallery% 35 Achievement% 24 Wizard Run 0 Options --------- ASCII 0 Keyboard 0 Movement Mouse Keybinds 0 Fullscreen 0 Font 16/SmallcapsGlow Map View 76x50 Tactical HUD 1 Map Filters NONE Filters NONE Steam 1 RUN: 2d9ab81d-182b-4f34-8c06-8981ad29d5d5